bitfinex/quotes_BTCUSD_20240921
["timestamp","ask_amount","ask_price","bid_price","bid_amount"]
[1726942166800,1.60142167,63318.0,63317.0,0.01143095]
[1726942167016,1.76054251,63318.0,63317.0,0.01143095]
[1726942167262,1.60142167,63318.0,63317.0,0.01143095]
[1726942167470,1.76054251,63318.0,63317.0,0.01143095]
[1726942168084,1.76002974,63318.0,63317.0,0.01143095]
[1726942169813,1.44416474,63318.0,63317.0,0.01143095]
[1726942170102,1.18718036,63318.0,63317.0,0.01143095]
[1726942170331,1.16451872,63318.0,63317.0,0.01143095]
[1726942170558,1.18718036,63318.0,63317.0,0.01143095]
[1726942173229,1.18789302,63318.0,63317.0,0.01143095]
[1726942177441,0.60684898,63318.0,63317.0,0.01143095]
[1726942177676,0.8490066,63318.0,63317.0,0.01143095]
[1726942178142,0.84900706,63318.0,63317.0,0.01143095]
[1726942178604,1.18802837,63318.0,63317.0,0.01143095]
[1726942183269,1.18784473,63318.0,63317.0,0.01143095]
[1726942188155,1.18765378,63318.0,63317.0,0.01143095]
[1726942189244,0.71520478,63318.0,63317.0,0.01143095]
[1726942189457,0.37640198,63318.0,63317.0,0.01143095]
[1726942189898,0.351654,63318.0,63317.0,0.01143095]
[1726942190113,0.49315943,63318.0,63317.0,0.01143095]
[1726942191076,0.48915943,63318.0,63317.0,0.01143095]
[1726942191940,0.48515943,63318.0,63317.0,0.01143095]
[1726942192160,0.48515943,63318.0,63317.0,0.01643095]
[1726942192374,0.48515943,63318.0,63317.0,0.01943095]
[1726942192844,0.48515943,63318.0,63317.0,0.01643095]
[1726942193321,0.48915943,63318.0,63317.0,0.01643095]
[1726942193532,0.64709143,63318.0,63317.0,0.01143095]
[1726942193740,0.48915943,63318.0,63317.0,0.01143095]
[1726942193959,0.49215943,63318.0,63317.0,0.01143095]
[1726942194199,0.48915943,63318.0,63317.0,0.01143095]
[1726942194413,0.48515943,63318.0,63317.0,0.01143095]
[1726942194859,0.502586,63318.0,63317.0,0.01143095]
[1726942195913,0.818451,63318.0,63317.0,0.01143095]
[1726942196346,1.134316,63318.0,63317.0,0.01143095]
[1726942196584,1.4731188,63318.0,63317.0,0.01143095]
[1726942196773,1.63230227,63318.0,63317.0,0.01143095]
[1726942197852,1.4731188,63318.0,63317.0,0.01143095]
[1726942198063,1.63226204,63318.0,63317.0,0.01143095]
[1726942198920,1.4731188,63318.0,63317.0,0.01143095]
[1726942199595,1.63226204,63318.0,63317.0,0.01143095]
[1726942201312,1.94812704,63318.0,63317.0,0.01143095]
[1726942201775,1.94338552,63318.0,63317.0,0.01143095]
[1726942202231,1.94732107,63318.0,63317.0,0.01143095]
[1726942203345,1.94694684,63318.0,63317.0,0.01143095]
[1726942203987,2.03714684,63318.0,63317.0,0.01143095]
[1726942205512,2.19621535,63318.0,63317.0,0.01143095]
[1726942206420,2.03714684,63318.0,63317.0,0.01143095]
[1726942206646,2.19619709,63318.0,63317.0,0.01143095]
[1726942206873,2.19610863,63318.0,63317.0,0.01143095]
[1726942215396,2.03705851,63318.0,63317.0,0.01143095]
[1726942216599,2.03753357,63318.0,63317.0,0.01143095]
[1726942216842,2.196551,63318.0,63317.0,0.01143095]
[1726942217239,2.03753357,63318.0,63317.0,0.01143095]
[1726942231635,2.02855784,63318.0,63317.0,0.01143095]
[1726942236801,2.028987,63318.0,63317.0,0.01143095]
[1726942237301,2.18825654,63318.0,63317.0,0.01143095]
[1726942237764,1.46143267,63318.0,63317.0,0.01143095]
[1726942237773,2.18835098,63318.0,63317.0,0.01143095]
[1726942239408,2.02906075,63318.0,63317.0,0.01143095]
[1726942241628,1.46143267,63318.0,63317.0,0.01143095]
[1726942241835,2.02901139,63318.0,63317.0,0.01143095]
[1726942242709,2.03901139,63318.0,63317.0,0.01243095]
[1726942243172,2.03801139,63318.0,63317.0,0.01243095]
[1726942243388,2.04701139,63318.0,63317.0,0.01343095]
[1726942243796,2.03801139,63318.0,63317.0,0.01243095]
[1726942244028,2.02801139,63318.0,63317.0,0.01143095]
[1726942244237,2.03801139,63318.0,63317.0,0.01243095]
[1726942244448,2.04801139,63318.0,63317.0,0.01343095]
[1726942244664,1.62194639,63318.0,63317.0,0.01143095]
[1726942244872,1.7813873,63318.0,63317.0,0.01143095]
[1726942245098,1.7993873,63318.0,63317.0,0.01343095]
[1726942245812,1.7903873,63318.0,63317.0,0.01243095]
[1726942245982,1.7903873,63318.0,63317.0,0.00743095]
[1726942246199,1.7963873,63318.0,63317.0,0.002]
[1726942246588,1.63694639,63318.0,63317.0,0.002]
[1726942246813,1.62794639,63318.0,63317.0,0.001]
[1726942247196,1.63694639,63318.0,63317.0,0.002]
[1726942247757,1.62794639,63318.0,63317.0,0.001]
[1726942247964,1.63394639,63318.0,63317.0,0.001]
[1726942250551,1.65869541,63318.0,63317.0,0.001]
[1726942252259,1.97456041,63318.0,63317.0,0.001]
[1726942252477,2.13399494,63318.0,63317.0,0.001]
[1726942254542,2.13399477,63318.0,63317.0,0.001]
[1726942254707,1.97456041,63318.0,63317.0,0.001]
[1726942255329,2.13401519,63318.0,63317.0,0.001]
[1726942255733,1.97456041,63318.0,63317.0,0.001]
[1726942256564,2.13401279,63318.0,63317.0,0.001]
[1726942257464,2.13401279,63318.0,63317.0,0.001826]
[1726942258000,2.30361279,63318.0,63317.0,0.001826]
[1726942258231,2.14416041,63318.0,63317.0,0.001826]
[1726942260857,2.14389134,63318.0,63317.0,0.001826]
[1726942267046,2.06679134,63318.0,63317.0,0.001826]
[1726942267284,1.49537267,63318.0,63317.0,0.001826]
[1726942267526,1.65478021,63318.0,63317.0,0.001826]
[1726942267764,1.17950767,63318.0,63317.0,0.001826]
[1726942268000,0.70571067,63318.0,63317.0,0.001826]
[1726942268256,0.53271204,63318.0,63317.0,0.001826]
[1726942268498,0.84857704,63318.0,63317.0,0.001826]
[1726942268757,1.17950767,63318.0,63317.0,0.001826]
[1726942274510,0.86364267,63318.0,63317.0,0.001826]
[1726942274744,0.53271204,63318.0,63317.0,0.001826]
[1726942274957,0.67435391,63318.0,63317.0,0.001826]
[1726942275176,0.99071358,63318.0,63317.0,0.001826]
[1726942275619,0.1,63316.0,63312.0,0.094026]
[1726942275836,0.2180266,63313.0,63312.0,0.094026]
[1726942276307,0.45489871,63313.0,63312.0,0.094026]
[1726942277590,0.33687211,63313.0,63312.0,0.094026]
[1726942278247,0.33787211,63313.0,63312.0,0.094026]
[1726942278478,0.33887211,63313.0,63312.0,0.094026]
[1726942279133,0.33787211,63313.0,63312.0,0.094026]
[1726942279564,0.33687211,63313.0,63312.0,0.096026]
[1726942279821,0.33687211,63313.0,63312.0,0.094026]
[1726942280030,0.1,63313.0,63312.0,0.095026]
[1726942280243,0.33684196,63313.0,63312.0,0.095026]
[1726942280461,0.33684196,63313.0,63312.0,0.094026]
[1726942280668,0.33684196,63313.0,63312.0,0.100026]
[1726942281568,0.4312402,63313.0,63312.0,0.100026]
[1726942282231,0.4322402,63313.0,63312.0,0.106026]
[1726942282485,0.4322402,63313.0,63312.0,0.100026]
[1726942282691,0.4322402,63313.0,63312.0,0.094026]
[1726942282929,0.4322402,63313.0,63312.0,0.096852]
[1726942283145,0.4322402,63313.0,63312.0,0.097852]
[1726942283587,0.4312402,63313.0,63312.0,0.094852]
[1726942284011,0.4312402,63313.0,63312.0,0.097852]
[1726942284461,0.4312402,63313.0,63312.0,0.094852]
[1726942284669,0.4312402,63313.0,63312.0,0.097852]
[1726942285098,0.43121214,63313.0,63312.0,0.092852]
[1726942285534,0.43121214,63313.0,63312.0,0.095852]
[1726942285979,0.43121214,63313.0,63312.0,0.092852]
[1726942286422,0.43121214,63313.0,63312.0,0.095852]
[1726942289705,0.33682476,63313.0,63312.0,0.095852]
[1726942289912,0.43121214,63313.0,63312.0,0.095852]
[1726942290144,0.43137301,63313.0,63312.0,0.092852]
[1726942290361,0.43137301,63313.0,63312.0,0.089852]
[1726942290548,0.43137301,63313.0,63312.0,0.093852]
[1726942291004,0.43137301,63313.0,63312.0,0.097852]
[1726942291902,0.43137301,63313.0,63312.0,0.093852]
[1726942292247,0.43237301,63313.0,63312.0,0.095852]
[1726942292468,0.33797983,63313.0,63312.0,0.095852]
[1726942292698,0.33797983,63313.0,63312.0,0.100852]
[1726942292914,0.43237132,63313.0,63312.0,0.100852]
[1726942294566,0.43237132,63313.0,63312.0,0.011826]
[1726942296745,0.001,63313.0,63312.0,0.111026]
[1726942296964,0.001,63313.0,63312.0,0.29531048]
[1726942297184,0.001,63313.0,63312.0,0.30968256]
[1726942297644,0.001,63313.0,63312.0,0.31168256]
[1726942297870,0.001652,63318.0,63313.0,0.0992]
[1726942298087,0.001652,63318.0,63314.0,0.18544271]
[1726942298315,0.001652,63318.0,63315.0,0.11843081]
[1726942298523,0.001652,63318.0,63316.0,0.1854427]
[1726942298740,0.001652,63318.0,63317.0,0.01923081]
[1726942298953,0.001652,63318.0,63317.0,0.18228448]
[1726942300087,0.001652,63318.0,63317.0,0.19428448]
[1726942300317,0.001652,63318.0,63317.0,0.19436069]
[1726942300559,0.001652,63318.0,63317.0,0.20636069]
[1726942300776,0.001652,63318.0,63317.0,0.21621463]
[1726942305750,0.001652,63318.0,63317.0,0.21954239]
[1726942310887,0.001652,63318.0,63317.0,0.20023537]
[1726942311340,0.001652,63318.0,63317.0,0.20754352]
[1726942311525,0.001652,63318.0,63317.0,0.21854352]
[1726942311761,0.001652,63318.0,63317.0,0.20654352]
[1726942311992,0.002652,63318.0,63317.0,0.20754352]
[1726942312416,0.002652,63318.0,63317.0,0.21754352]
[1726942312832,0.002652,63318.0,63317.0,0.20754352]
[1726942313042,0.002652,63318.0,63317.0,0.21854352]
[1726942314554,0.002652,63318.0,63317.0,0.21854395]
[1726942316663,0.002652,63318.0,63317.0,0.19923537]
[1726942316875,0.002652,63318.0,63317.0,0.21854268]
[1726942318150,0.002652,63318.0,63317.0,0.21854359]
[1726942321609,0.002652,63318.0,63317.0,0.21854393]
[1726942324819,0.002652,63318.0,63317.0,0.19923537]
[1726942325047,0.002652,63318.0,63317.0,0.21856282]
[1726942329155,0.160584,63318.0,63317.0,0.05550915]
[1726942329379,0.90153091,63318.0,63317.0,0.05550915]
[1726942329585,0.90153091,63318.0,63317.0,0.04232745]
[1726942329810,0.90153091,63318.0,63317.0,0.023]
[1726942329811,0.9486746,63318.0,63317.0,0.023]
[1726942331980,1.01939014,63318.0,63317.0,0.023]
[1726942332186,0.97224645,63318.0,63317.0,0.023]
[1726942332899,0.9958183,63318.0,63317.0,0.023]
[1726942333329,0.99587046,63318.0,63317.0,0.023]
[1726942333550,1.43525515,63318.0,63317.0,0.023]
[1726942333769,1.31739591,63318.0,63317.0,0.023]
[1726942333990,1.54545898,63318.0,63317.0,0.023]
[1726942334452,1.54545898,63318.0,63317.0,0.012]
[1726942334695,1.54545898,63318.0,63317.0,0.019]
[1726942335343,1.54445898,63318.0,63317.0,0.007]
[1726942335798,1.54545898,63318.0,63317.0,0.008]
[1726942336042,0.673027,63314.0,63313.0,0.000826]
[1726942336275,0.74376869,63314.0,63313.0,0.000826]
[1726942336497,0.74377398,63314.0,63313.0,0.000826]
[1726942336704,0.673027,63314.0,63313.0,0.000826]
[1726942336914,0.74378109,63314.0,63313.0,0.000826]
[1726942338200,0.74377944,63314.0,63313.0,0.000826]
[1726942338623,0.74377944,63314.0,63313.0,0.009826]
[1726942338845,0.74377944,63314.0,63313.0,0.004826]
[1726942339263,0.74377944,63314.0,63313.0,0.008826]
[1726942339940,0.74377944,63314.0,63313.0,0.004826]
[1726942340213,0.74377944,63314.0,63313.0,0.007826]
[1726942340644,0.74377944,63314.0,63313.0,0.003826]
[1726942340858,0.74377944,63314.0,63313.0,0.006826]
[1726942341947,0.74377944,63314.0,63313.0,0.003826]
[1726942342152,0.74377944,63314.0,63313.0,0.001826]
[1726942342369,0.74377944,63314.0,63313.0,0.002826]
[1726942342984,0.673027,63314.0,63313.0,0.002826]
[1726942343211,0.74381485,63314.0,63313.0,0.002826]
[1726942343433,0.673027,63314.0,63313.0,0.002826]
[1726942343647,0.72020889,63314.0,63313.0,0.002826]
[1726942343862,0.673027,63314.0,63313.0,0.002826]
[1726942344508,0.74381485,63314.0,63313.0,0.002826]
[1726942345218,0.673027,63314.0,63313.0,0.002826]
[1726942345899,0.74381485,63314.0,63313.0,0.002826]
[1726942347087,0.673027,63314.0,63313.0,0.002826]
[1726942347839,0.72019618,63314.0,63313.0,0.002826]
[1726942348048,0.74381485,63314.0,63313.0,0.002826]
[1726942348271,0.673027,63314.0,63313.0,0.002826]
[1726942349362,0.72019061,63314.0,63313.0,0.002826]
[1726942350503,0.74381485,63314.0,63313.0,0.002826]
[1726942350942,0.673027,63314.0,63313.0,0.002826]
[1726942351558,0.74381485,63314.0,63313.0,0.002826]
[1726942352416,0.62098743,63314.0,63313.0,0.002826]
[1726942352622,0.1,63314.0,63313.0,0.002826]
[1726942352908,0.573827,63314.0,63313.0,0.002826]
[1726942353282,0.257942,63314.0,63313.0,0.002826]
[1726942353509,0.157941,63315.0,63313.0,0.002826]
[1726942353714,0.001652,63314.0,63313.0,0.000826]
[1726942354091,0.101652,63314.0,63313.0,0.001826]
[1726942354548,0.001652,63314.0,63313.0,0.01811418]
[1726942354757,0.001652,63314.0,63313.0,0.006826]
[1726942354987,0.002652,63314.0,63313.0,0.01943535]
[1726942355202,0.001652,63314.0,63313.0,0.00743535]
[1726942355700,0.001652,63314.0,63313.0,0.03255435]
[1726942355937,0.001652,63314.0,63313.0,0.01343535]
[1726942356154,0.002652,63314.0,63313.0,0.01943535]
[1726942356382,0.001652,63314.0,63313.0,0.03253836]
[1726942356823,0.002652,63314.0,63313.0,0.04053836]
[1726942357038,0.002652,63314.0,63313.0,0.03453836]
[1726942357924,0.002652,63314.0,63313.0,0.04253836]
[1726942365123,0.002652,63314.0,63313.0,0.04252483]
[1726942372204,0.002652,63314.0,63313.0,0.04568336]
[1726942373309,0.002652,63314.0,63313.0,0.04252483]
[1726942374350,0.002652,63314.0,63313.0,0.04568336]
[1726942374925,0.002652,63314.0,63313.0,0.04252483]
[1726942375980,0.002652,63314.0,63313.0,0.02343535]
[1726942376179,0.002652,63314.0,63313.0,0.04259674]
[1726942379503,0.002652,63314.0,63313.0,0.02343535]
[1726942379701,0.002652,63314.0,63313.0,0.04260658]
[1726942382849,0.002652,63314.0,63313.0,0.03599723]
[1726942383491,0.002652,63314.0,63313.0,0.02799723]
[1726942383694,0.001652,63314.0,63313.0,0.01999723]
[1726942383909,0.002652,63314.0,63313.0,0.03699723]
[1726942385155,0.001652,63314.0,63313.0,0.02799723]
[1726942385346,0.001652,63314.0,63313.0,0.01999723]
[1726942385553,0.001652,63314.0,63313.0,0.02899723]
[1726942385755,0.001652,63314.0,63313.0,0.017826]
[1726942386032,0.001652,63314.0,63313.0,0.03702215]
[1726942386199,0.001652,63314.0,63313.0,0.017826]
[1726942386419,0.001652,63314.0,63313.0,0.03701572]
[1726942394475,0.001652,63314.0,63313.0,0.017826]
[1726942394694,0.001652,63314.0,63313.0,0.03700042]
[1726942395767,0.001652,63314.0,63313.0,0.017826]
[1726942398489,0.04891968,63314.0,63313.0,0.017826]
[1726942400417,0.001652,63314.0,63313.0,0.017826]
[1726942419965,0.159594,63314.0,63313.0,0.017826]
[1726942420280,0.001652,63314.0,63313.0,0.017826]
[1726942420530,0.0726254,63314.0,63313.0,0.017826]
[1726942421612,0.07266435,63314.0,63313.0,0.017826]
[1726942422819,0.23060635,63314.0,63313.0,0.017826]
[1726942425168,0.159594,63314.0,63313.0,0.017826]
[1726942425377,0.4848167,63314.0,63313.0,0.017826]
[1726942425583,0.48166263,63314.0,63313.0,0.017826]
[1726942426415,0.79754763,63314.0,63313.0,0.017826]
[1726942427020,0.89754763,63314.0,63313.0,0.017826]
[1726942431517,0.89707118,63314.0,63313.0,0.017826]
[1726942432580,1.0154217,63314.0,63313.0,0.017826]
[1726942433589,0.89707118,63314.0,63313.0,0.017826]
[1726942437219,1.21295618,63314.0,63313.0,0.017826]
[1726942440871,1.21248432,63314.0,63313.0,0.017826]
[1726942448648,0.984364,63314.0,63313.0,0.017826]
[1726942449754,1.21233115,63314.0,63313.0,0.017826]
[1726942450667,0.984364,63314.0,63313.0,0.017826]
[1726942452059,1.21227219,63314.0,63313.0,0.017826]
[1726942452543,0.984364,63314.0,63313.0,0.017826]
[1726942455795,1.21229111,63314.0,63313.0,0.017826]
[1726942456036,1.21232742,63314.0,63313.0,0.017826]
[1726942456956,0.984364,63314.0,63313.0,0.017826]
[1726942467124,1.12618029,63314.0,63313.0,0.017826]
[1726942467342,1.44501296,63314.0,63313.0,0.017826]
[1726942467551,1.12621474,63314.0,63313.0,0.017826]
[1726942468637,0.984364,63314.0,63313.0,0.017826]
[1726942469614,1.126237,63314.0,63313.0,0.017826]
[1726942471529,1.44526174,63314.0,63313.0,0.017826]
[1726942471735,1.126237,63314.0,63313.0,0.017826]
[1726942475630,0.810352,63314.0,63313.0,0.017826]
[1726942476044,0.89649242,63314.0,63313.0,0.017826]
[1726942476271,0.810352,63314.0,63313.0,0.017826]
[1726942478332,0.81038061,63314.0,63313.0,0.017826]
[1726942481337,0.668479,63314.0,63313.0,0.017826]
[1726942481551,0.89658412,63314.0,63313.0,0.017826]
[1726942482688,1.03850751,63314.0,63313.0,0.017826]
[1726942483506,0.89658412,63314.0,63313.0,0.0181993]
[1726942483709,1.21246912,63314.0,63313.0,0.0181993]
[1726942483920,0.98759642,63314.0,63313.0,0.0181993]
[1726942484114,0.668479,63314.0,63313.0,0.0181993]
[1726942487238,0.98751858,63314.0,63313.0,0.0181993]
[1726942488967,1.30340358,63314.0,63313.0,0.0181993]
[1726942489422,0.98751858,63314.0,63313.0,0.0181993]
[1726942490059,0.668479,63314.0,63313.0,0.0181993]
[1726942490307,0.984364,63314.0,63313.0,0.0181993]
[1726942490548,0.668479,63314.0,63313.0,0.0181993]
[1726942490757,0.984364,63314.0,63313.0,0.0181993]
[1726942490956,0.668479,63314.0,63313.0,0.0181993]
[1726942491557,0.98755525,63314.0,63313.0,0.0181993]
[1726942491908,1.30344025,63314.0,63313.0,0.0181993]
[1726942493867,0.98755525,63314.0,63313.0,0.0181993]
[1726942494318,0.89652226,63314.0,63313.0,0.0181993]
[1726942494715,0.98755525,63314.0,63313.0,0.0181993]
[1726942494948,0.984364,63314.0,63313.0,0.0181993]
[1726942495375,1.30344025,63314.0,63313.0,0.0181993]
[1726942495874,0.98755525,63314.0,63313.0,0.0181993]
[1726942496076,1.35763823,63314.0,63313.0,0.0181993]
[1726942496304,1.21252672,63314.0,63313.0,0.0181993]
[1726942496515,0.89664172,63314.0,63313.0,0.0181993]
[1726942498319,1.21571797,63314.0,63313.0,0.0181993]
[1726942500391,1.2159952,63314.0,63313.0,0.0181993]
[1726942501099,1.5318802,63314.0,63313.0,0.0181993]
[1726942504035,1.53189662,63314.0,63313.0,0.0181993]
[1726942504482,1.53179384,63314.0,63313.0,0.0181993]
[1726942508957,1.53167147,63314.0,63313.0,0.0181993]
[1726942513992,1.5324724,63314.0,63313.0,0.0181993]
[1726942518819,1.53243425,63314.0,63313.0,0.0181993]
[1726942520653,0.80766425,63314.0,63313.0,0.0181993]
[1726942520869,0.8038416,63314.0,63313.0,0.0181993]
[1726942521329,0.8038416,63314.0,63313.0,0.0101993]
[1726942521330,0.3300146,63314.0,63313.0,0.0101993]
[1726942521548,0.3300146,63314.0,63313.0,0.0011993]
[1726942521758,0.3300146,63314.0,63313.0,0.0041993]
[1726942521982,0.4879566,63314.0,63313.0,0.0041993]
[1726942522217,0.3300146,63314.0,63313.0,0.0041993]
[1726942522475,0.2300146,63314.0,63313.0,0.0041993]
[1726942522713,0.2300146,63314.0,63313.0,0.12550788]
[1726942522714,0.001652,63314.0,63313.0,0.12550788]
[1726942523141,0.001652,63314.0,63313.0,0.13950278]
[1726942523353,0.001652,63314.0,63313.0,0.13650278]
[1726942523581,0.001652,63314.0,63313.0,0.13350278]
[1726942523799,0.001652,63314.0,63313.0,0.13850278]
[1726942524232,0.001652,63314.0,63313.0,0.13350278]
[1726942524465,0.001652,63314.0,63313.0,0.14150278]
[1726942524686,0.001652,63314.0,63313.0,0.13350278]
[1726942525131,0.001652,63314.0,63313.0,0.14150278]
[1726942525562,0.001652,63314.0,63313.0,0.15050278]
[1726942526511,0.001652,63314.0,63313.0,0.21840278]
[1726942526746,0.001652,63314.0,63313.0,0.22740278]
[1726942526975,0.001652,63314.0,63313.0,0.21840278]
[1726942527213,0.001652,63314.0,63313.0,0.22240278]
[1726942527436,0.00159867,63314.0,63313.0,0.22240278]
[1726942527681,0.00159867,63314.0,63313.0,0.22340278]
[1726942527950,0.00159867,63314.0,63313.0,0.24056132]
[1726942528430,0.00159867,63314.0,63313.0,0.23740278]
[1726942529360,0.00159867,63314.0,63313.0,0.24056133]
[1726942529816,0.00159867,63314.0,63313.0,0.23740278]
[1726942531617,0.00159867,63314.0,63313.0,0.24056133]
[1726942531837,0.00159867,63314.0,63313.0,0.24304762]
[1726942533111,0.00159867,63314.0,63313.0,0.23988907]
[1726942533334,0.00159867,63314.0,63313.0,0.24304762]
[1726942533542,0.00159867,63314.0,63313.0,0.23988907]
[1726942534409,0.00159867,63314.0,63313.0,0.24304762]
[1726942534620,0.00159867,63314.0,63313.0,0.23988907]
[1726942535516,0.00159867,63314.0,63313.0,0.24304762]
[1726942535760,0.00159867,63314.0,63313.0,0.22343904]
[1726942535985,0.00159867,63314.0,63313.0,0.24458571]
[1726942536220,0.00159867,63314.0,63313.0,0.24142716]
[1726942536445,0.00159867,63314.0,63313.0,0.24459905]
[1726942536708,0.00159867,63314.0,63313.0,0.2414405]
[1726942538538,0.00159867,63314.0,63313.0,0.24459905]
[1726942539115,0.00159867,63314.0,63313.0,0.2414405]
[1726942539822,0.00159867,63314.0,63313.0,0.24459905]
[1726942540230,0.00159867,63314.0,63313.0,0.2414405]
[1726942541079,0.00159867,63314.0,63313.0,0.24459906]
[1726942541504,0.00159867,63314.0,63313.0,0.2414405]
[1726942542408,0.00159867,63314.0,63313.0,0.24459906]
[1726942542823,0.00159867,63314.0,63313.0,0.2414405]
[1726942543459,0.00159867,63314.0,63313.0,0.22028049]
[1726942543679,0.00159867,63314.0,63313.0,0.24141369]
[1726942547335,0.00159867,63314.0,63313.0,0.24140031]
[1726942552648,0.001652,63318.0,63313.0,0.24140031]
[1726942552880,0.001652,63318.0,63314.0,0.02111982]
[1726942553116,0.001652,63318.0,63315.0,0.03759613]
[1726942553353,0.001652,63318.0,63316.0,0.02111982]
[1726942553577,0.001652,63318.0,63317.0,0.02111982]
[1726942554950,0.001652,63318.0,63317.0,0.03311982]
[1726942555400,0.001652,63318.0,63317.0,0.04511982]
[1726942556813,0.001652,63318.0,63317.0,0.05669048]
[1726942557097,0.001652,63318.0,63317.0,0.05667645]
[1726942560886,0.001652,63318.0,63317.0,0.06157519]
[1726942563549,0.001652,63318.0,63317.0,0.0404694]
[1726942563754,0.001652,63318.0,63317.0,0.06157117]
[1726942563968,0.001652,63318.0,63317.0,0.04510177]
[1726942564170,0.001652,63318.0,63317.0,0.05667243]
[1726942564387,0.001652,63318.0,63317.0,0.06157213]
[1726942566852,0.001652,63318.0,63317.0,0.04047036]
[1726942567089,0.001652,63318.0,63317.0,0.06157538]
[1726942567348,0.001652,63318.0,63317.0,0.04510502]
[1726942568550,0.04887173,63318.0,63317.0,0.04510502]
[1726942568786,0.001652,63318.0,63317.0,0.04510502]
[1726942569702,0.04887173,63318.0,63317.0,0.04510502]
[1726942570202,0.04887173,63318.0,63317.0,0.04514545]
[1726942571561,0.04892389,63318.0,63317.0,0.04514545]
[1726942572174,0.001652,63318.0,63317.0,0.04514545]
[1726942572752,0.04892288,63318.0,63317.0,0.04514545]
[1726942573254,0.04892288,63318.0,63317.0,0.0451587]
[1726942573680,0.001652,63318.0,63317.0,0.0451587]
[1726942574104,0.04892368,63318.0,63317.0,0.0451587]
[1726942574925,0.04892487,63318.0,63317.0,0.0451587]
[1726942575155,0.001652,63318.0,63317.0,0.0451587]
[1726942576029,0.04892454,63318.0,63317.0,0.0451587]
[1726942576460,0.04892454,63318.0,63317.0,0.024]
[1726942576461,0.04892481,63318.0,63317.0,0.024]
[1726942576675,0.04892481,63318.0,63317.0,0.04510235]
[1726942576899,0.001652,63318.0,63317.0,0.30055602]
[1726942577386,0.001652,63318.0,63317.0,0.22462821]
[1726942579706,0.001652,63318.0,63317.0,0.22466705]
[1726942582674,0.001652,63318.0,63317.0,0.20352586]
[1726942588170,0.001652,63318.0,63317.0,0.21859789]
[1726942588784,0.001652,63318.0,63317.0,0.20352586]
[1726942589023,0.001652,63318.0,63317.0,0.21859652]
[1726942593010,0.001652,63318.0,63317.0,0.20352586]
[1726942604242,0.001652,63318.0,63317.0,0.04047219]
[1726942604243,0.093552,63318.0,63317.0,0.04047219]
[1726942604675,0.093552,63318.0,63317.0,0.024]
[1726942618028,0.16442551,63318.0,63317.0,0.024]
[1726942618508,0.16441909,63318.0,63317.0,0.024]
[1726942618777,0.16441896,63318.0,63317.0,0.024]
[1726942620599,0.16442004,63318.0,63317.0,0.024]
[1726942624099,0.32235204,63318.0,63317.0,0.024]
[1726942624321,0.983214,63318.0,63317.0,0.024]
[1726942624541,1.10129742,63318.0,63317.0,0.024]
[1726942624753,0.983214,63318.0,63317.0,0.024]
[1726942625169,1.21136945,63318.0,63317.0,0.024]
[1726942625382,0.473812,63316.0,63315.0,0.0003733]
[1726942625589,0.89916745,63316.0,63315.0,0.0003733]
[1726942626626,0.89916745,63316.0,63315.0,0.0013733]
[1726942626835,1.01716463,63316.0,63315.0,0.0013733]
[1726942627249,0.89916745,63316.0,63315.0,0.0013733]
[1726942627456,1.01713991,63316.0,63315.0,0.0013733]
[1726942627866,1.01713991,63316.0,63315.0,0.0023733]
[1726942629355,1.01690626,63316.0,63315.0,0.0023733]
[1726942629539,0.89895372,63316.0,63315.0,0.0023733]
[1726942630615,0.99329462,63316.0,63315.0,0.0023733]
[1726942631032,0.89895372,63316.0,63315.0,0.0023733]
[1726942631240,0.99329824,63316.0,63315.0,0.0023733]
[1726942632171,1.01228112,63316.0,63315.0,0.0023733]
[1726942632845,0.9179366,63316.0,63315.0,0.0023733]
[1726942633377,1.01225937,63316.0,63315.0,0.0023733]
[1726942633791,1.01060732,63316.0,63315.0,0.0023733]
[1726942637000,0.91628455,63316.0,63315.0,0.0023733]
[1726942637221,1.01060732,63316.0,63315.0,0.0023733]
[1726942637444,0.91628455,63316.0,63315.0,0.0023733]
[1726942639073,1.23215955,63316.0,63315.0,0.0023733]
[1726942639779,1.23198783,63316.0,63315.0,0.0023733]
[1726942640019,1.3263106,63316.0,63315.0,0.0023733]
[1726942641188,1.23198783,63316.0,63315.0,0.0023733]
[1726942641839,1.3263106,63316.0,63315.0,0.0023733]
[1726942642548,1.66581537,63316.0,63315.0,0.0023733]
[1726942642777,1.54786283,63316.0,63315.0,0.0023733]
[1726942643548,1.23198783,63316.0,63315.0,0.0023733]
[1726942643756,1.34982652,63316.0,63315.0,0.0023733]
[1726942643971,1.23198783,63316.0,63315.0,0.0023733]
[1726942644178,1.35008989,63316.0,63315.0,0.0023733]
[1726942648085,1.32652416,63316.0,63315.0,0.0023733]
[1726942648288,1.23225129,63316.0,63315.0,0.0023733]
[1726942648708,1.32652849,63316.0,63315.0,0.0023733]
[1726942648915,1.32652816,63316.0,63315.0,0.0023733]
[1726942649128,1.32652816,63316.0,63315.0,0.0031993]
[1726942649129,1.23225129,63316.0,63315.0,0.0031993]
[1726942649277,1.23390329,63316.0,63315.0,0.0031993]
[1726942652543,1.35174189,63316.0,63315.0,0.0031993]
[1726942653784,0.89904541,63316.0,63315.0,0.0031993]
[1726942654028,0.99336795,63316.0,63315.0,0.0031993]
[1726942654969,0.424008,63316.0,63315.0,0.0031993]
[1726942655215,0.17238328,63316.0,63315.0,0.02372763]
[1726942655456,0.07238328,63316.0,63315.0,0.02372763]
[1726942655697,0.001652,63316.0,63315.0,0.02372763]
[1726942656416,0.07238328,63316.0,63315.0,0.02372763]
[1726942658663,0.001652,63316.0,63315.0,0.02372763]
[1726942658841,0.048828,63316.0,63315.0,0.11692763]
[1726942659093,0.048828,63316.0,63315.0,0.13050827]
[1726942659313,0.001652,63316.0,63315.0,0.04042202]
[1726942659532,0.001652,63316.0,63315.0,0.04342202]
[1726942661338,0.07241538,63316.0,63315.0,0.04342202]
[1726942663367,0.001652,63316.0,63315.0,0.04342202]
[1726942664090,0.001652,63316.0,63315.0,0.03178261]
[1726942664327,0.001652,63316.0,63315.0,0.02766886]
[1726942664551,0.23149797,63316.0,63315.0,0.02766886]
[1726942665247,0.07246873,63316.0,63315.0,0.02766886]
[1726942665493,0.07247366,63316.0,63315.0,0.02766886]
[1726942665702,0.001652,63316.0,63315.0,0.02766886]
[1726942666407,0.04886617,63316.0,63315.0,0.02766886]
[1726942666622,0.07247366,63316.0,63315.0,0.02766886]
[1726942667341,0.07247366,63316.0,63315.0,0.0071993]